bitfinex-derivatives/quotes_ETHF0:USTF0_20240907
["timestamp","ask_amount","ask_price","bid_price","bid_amount"]
[1725703533742,3.2078,2285.2,2285.1,0.43768]
[1725703534149,3.2078,2285.2,2285.1,0.79478]
[1725703534450,3.2078,2285.2,2285.0,0.82518]
[1725703534653,3.2078,2285.2,2285.1,0.43768]
[1725703536145,3.2078,2285.2,2285.0,1.20709]
[1725703537255,3.64545,2285.3,2285.1,0.43768]
[1725703538058,0.43763,2285.4,2285.1,0.43766]
[1725703538261,0.43763,2285.4,2285.2,0.3638]
[1725703538643,7.87193337,2285.5,2285.2,0.3638]
[1725703538854,4.33989116,2285.5,2285.2,0.80145]
[1725703539153,3.92942973,2285.5,2285.2,0.80145]
[1725703539451,0.43762,2285.4,2285.2,0.3638]
[1725703540851,0.43762,2285.4,2285.2,0.80146]
[1725703542458,5.65371,2285.5,2285.2,0.80146]
[1725703543058,5.2161,2285.5,2285.2,0.80146]
[1725703543253,0.43762,2285.4,2285.2,0.80146]
[1725703545249,0.43764,2285.3,2285.2,0.3638]
[1725703546158,0.43764,2285.3,2285.2,0.80146]
[1725703546562,0.43763,2285.4,2285.2,0.80146]
[1725703547260,0.43763,2285.4,2285.3,0.43764]
[1725703548453,5.29571,2285.5,2285.2,0.3638]
[1725703548657,9.26536221,2285.5,2285.3,0.43763]
[1725703548857,9.26536221,2285.5,2285.4,0.3627]
[1725703549259,9.26536221,2285.5,2285.4,0.80032]
[1725703549260,3.96965221,2285.5,2285.4,0.80032]
[1725703549555,3.96965221,2285.6,2285.5,0.4376]
[1725703549762,2.08587,2285.7,2285.6,0.43758]
[1725703549763,6.05552221,2285.7,2285.6,0.43758]
[1725703550168,10.43072221,2285.7,2285.5,0.81959]
[1725703550364,6.05552221,2285.7,2285.5,0.81959]
[1725703551062,3.2078,2285.6,2285.5,0.81959]
[1725703551858,3.2078,2285.6,2285.4,0.3627]
[1725703552064,0.832,2285.5,2285.4,0.80032]
[1725703552367,0.832,2285.5,2285.4,0.3627]
[1725703553368,0.83202,2285.5,2285.4,0.43762]
[1725703553564,4.7696,2285.5,2285.3,0.3895]
[1725703553760,0.3944,2285.5,2285.3,0.3895]
[1725703554064,1.6544,2285.5,2285.2,0.43765]
[1725703554260,0.43764,2285.3,2285.2,0.43765]
[1725703554873,0.43767,2285.2,2285.1,0.43767]
[1725703555073,1.20247,2285.2,2285.1,0.43767]
[1725703555263,0.7648,2285.2,2285.1,0.43767]
[1725703555770,1.20246,2285.2,2285.1,0.43767]
[1725703555972,0.7648,2285.2,2285.1,0.43767]
[1725703557964,0.43763,2285.4,2285.2,0.43765]
[1725703558163,0.43764,2285.3,2285.2,0.43765]
[1725703558676,0.3765,2285.4,2285.2,0.43765]
[1725703558677,0.81413,2285.4,2285.2,0.43765]
[1725703559569,0.43763,2285.4,2285.3,0.3891]
[1725703561276,0.365,2285.5,2285.3,0.3891]
[1725703561578,0.8026,2285.5,2285.4,0.3618]
[1725703561777,0.4376,2285.5,2285.4,0.3618]
[1725703561975,0.43762,2285.4,2285.2,0.43765]
[1725703562179,0.81001,2285.5,2285.3,0.43764]
[1725703562372,0.81001,2285.5,2285.4,0.3618]
[1725703563479,0.43762,2285.4,2285.3,0.43764]
[1725703563678,0.82322,2285.4,2285.3,0.43764]
[1725703564779,0.3856,2285.4,2285.3,0.43764]
[1725703565177,0.82322,2285.4,2285.3,0.43764]
[1725703565373,0.3856,2285.4,2285.3,0.43764]
[1725703566982,0.82322,2285.4,2285.3,0.43764]
[1725703567176,0.82322,2285.4,2285.1,0.3618]
[1725703567388,0.82322,2285.4,2285.3,0.43764]
[1725703569483,0.3856,2285.4,2285.3,0.43764]
[1725703569680,3.96965221,2285.5,2285.4,0.43762]
[1725703569880,7.61505221,2285.6,2285.4,0.83012]
[1725703570078,7.61505221,2285.6,2285.5,0.3759]
[1725703570287,7.63114368,2285.6,2285.5,0.3759]
[1725703570980,4.42334368,2285.6,2285.5,0.7623]
[1725703571676,0.45369147,2285.6,2285.5,0.7623]
[1725703571876,3.66149147,2285.6,2285.5,0.7623]
[1725703572579,3.661492,2285.6,2285.5,0.7623]
[1725703574582,0.453692,2285.6,2285.5,0.7623]
[1725703574984,3.661492,2285.6,2285.5,0.7623]
[1725703576485,3.6454,2285.6,2285.5,0.7623]
[1725703576685,3.66149209,2285.6,2285.5,0.7623]
[1725703577086,3.6454,2285.6,2285.5,0.7623]
[1725703578592,0.43762,2285.5,2285.3,0.43763]
[1725703578794,0.3698,2285.4,2285.3,0.43763]
[1725703578992,0.80742,2285.4,2285.3,0.43763]
[1725703579293,0.3698,2285.4,2285.3,0.43763]
[1725703579686,0.43762,2285.5,2285.3,0.43763]
[1725703579992,0.43762,2285.5,2285.4,0.43762]
[1725703581792,0.43762,2285.4,2285.3,0.43763]
[1725703581988,0.43768,2285.1,2284.9,0.4377]
[1725703582191,0.43767,2285.2,2285.0,0.80469]
[1725703582496,0.43768,2285.1,2285.0,0.367]
[1725703582791,0.80198,2285.1,2285.0,0.367]
[1725703583185,0.80198,2285.1,2284.9,0.7966]
[1725703583381,0.80198,2285.1,2285.0,0.4377]
[1725703584086,0.3643,2285.1,2285.0,0.4377]
[1725703585688,0.80198,2285.1,2285.0,0.4377]
[1725703586097,0.3643,2285.1,2285.0,0.4377]
[1725703586798,4.33395221,2285.1,2285.0,0.4377]
[1725703586999,3.96965221,2285.1,2285.0,0.4377]
[1725703587189,4.78191221,2285.2,2285.0,0.4377]
[1725703587390,3.96965221,2285.1,2285.0,0.4377]
[1725703588096,3.96965221,2285.1,2284.9,0.3589]
[1725703588097,3.96965221,2285.1,2284.9,0.7966]
[1725703589397,4.78191221,2285.2,2284.9,0.7966]
[1725703589600,3.96965221,2285.1,2285.0,0.4377]
[1725703589896,0.43768,2285.1,2284.9,0.7966]
[1725703590099,3.96965221,2285.1,2285.0,0.4377]
[1725703590796,4.76442221,2285.2,2285.0,0.4377]
[1725703593296,4.32675221,2285.2,2285.0,0.4377]
[1725703593497,4.32675221,2285.2,2284.9,0.3589]
[1725703593498,4.40733221,2285.1,2284.9,0.7966]
[1725703593804,0.43768,2285.1,2284.9,0.3589]
[1725703594306,0.79477,2285.2,2285.0,0.43769]
[1725703596000,0.43767,2285.2,2285.1,0.43768]
[1725703596392,4.01703,2285.4,2285.3,0.43764]
[1725703596592,3.2078,2285.4,2285.3,0.43764]
[1725703596793,3.64542,2285.4,2285.3,0.43764]
[1725703597101,0.3775,2285.5,2285.3,0.43764]
[1725703597300,0.3775,2285.5,2285.4,0.3788]
[1725703597506,0.39359248,2285.5,2285.4,0.3788]
[1725703597801,0.3775,2285.5,2285.4,0.81642]
[1725703597999,0.39359237,2285.5,2285.4,0.81642]
[1725703598200,4.0229,2285.5,2285.4,0.3788]
[1725703598504,8.4141923,2285.5,2285.4,0.81642]
[1725703599204,4.0389923,2285.5,2285.4,0.81642]
[1725703599406,3.5853,2285.5,2285.4,0.81642]
[1725703600302,4.0229,2285.5,2285.4,0.81642]
[1725703600699,0.3775,2285.5,2285.4,0.81642]
[1725703601601,0.8151,2285.5,2285.4,0.81642]
[1725703604507,0.8092,2285.6,2285.4,0.81642]
[1725703604904,0.8092,2285.6,2285.5,0.8005]
[1725703604905,0.3716,2285.6,2285.5,0.8005]
[1725703605211,0.80918,2285.6,2285.5,0.3629]
[1725703609019,5.34592539,2285.6,2285.5,0.3629]
[1725703609214,0.4376,2285.5,2285.4,0.3788]
[1725703609812,1.26,2285.5,2285.2,0.83285]
[1725703610111,4.01027713,2285.3,2285.2,0.83285]
[1725703610914,4.37457713,2285.3,2285.2,0.83285]
[1725703611509,0.3643,2285.3,2285.2,0.83285]
[1725703611809,4.37457713,2285.3,2285.2,0.83285]
[1725703613210,4.81221713,2285.3,2285.1,1.20157]
[1725703613406,4.81221713,2285.3,2285.2,0.43766]
[1725703614012,4.81221713,2285.3,2285.1,1.58066]
[1725703615014,4.37457713,2285.3,2285.2,0.43766]
[1725703616116,4.81221713,2285.3,2285.1,1.58596]
[1725703616714,0.80194,2285.3,2285.1,1.58596]
[1725703617304,0.80194,2285.3,2285.2,0.43766]
[1725703617305,0.3643,2285.3,2285.2,0.43766]
[1725703618117,4.81340713,2285.4,2285.2,0.43766]
[1725703618118,4.37577713,2285.4,2285.2,0.43766]
[1725703618312,0.3655,2285.4,2285.2,0.43766]
[1725703618512,4.81339713,2285.4,2285.2,0.43766]
[1725703618919,0.80312,2285.4,2285.2,0.43766]
[1725703619120,4.81339713,2285.4,2285.2,0.43766]
[1725703620120,0.43764,2285.3,2285.1,1.58596]
[1725703620311,0.43764,2285.3,2285.2,0.43766]
[1725703620514,4.81340713,2285.4,2285.2,0.43766]
[1725703621814,4.81340713,2285.4,2284.9,0.43771]
[1725703621815,4.30192,2285.3,2284.9,0.43771]
[1725703622126,0.43772,2284.9,2284.8,0.43772]
[1725703622319,0.43772,2284.9,2284.8,0.82002]
[1725703622520,0.43771,2285.0,2284.8,0.82002]
[1725703622826,0.82921,2285.0,2284.8,0.82002]
[1725703623017,0.373,2284.9,2284.8,0.82002]
[1725703623524,0.82921,2285.0,2284.8,0.82002]
[1725703624225,0.82921,2285.0,2284.8,0.3823]
[1725703624426,0.82921,2285.0,2284.8,0.82002]
[1725703626526,10.01416695,2285.5,2284.9,5.6368]
[1725703626722,0.80552,2285.5,2285.0,1.14051969]
[1725703626928,1.17272,2285.5,2285.3,0.43764]
[1725703627129,1.17272,2285.5,2285.4,0.383]
[1725703627329,1.18881239,2285.5,2285.4,0.383]
[1725703627823,1.18881274,2285.5,2285.4,0.383]
[1725703629327,0.3672,2285.5,2285.4,0.82062]
[1725703629929,0.8048,2285.5,2285.4,0.383]
[1725703630424,0.8048,2285.5,2285.4,0.43762]
[1725703630625,0.3672,2285.5,2285.4,0.43762]
[1725703634537,1.89388982,2285.9,2285.8,0.43754]
[1725703634739,0.3611,2286.2,2285.9,0.43753]
[1725703635034,0.3611,2286.2,2286.0,0.4375]
[1725703635340,0.3925,2286.4,2286.2,0.43746]
[1725703635639,2.05852,2286.5,2286.2,0.43746]
[1725703635837,2.05852,2286.5,2286.1,0.43748]
[1725703636636,0.43743,2286.4,2286.1,0.43748]
[1725703636837,2.05852,2286.5,2286.1,0.43748]
[1725703639946,1.6211,2286.5,2286.0,1.6322]
[1725703640142,2.05851,2286.5,2286.1,0.43747]
[1725703641345,1.6211,2286.5,2286.2,0.43746]
[1725703641538,2.05851,2286.5,2286.1,0.43747]
[1725703641947,2.05851,2286.5,2286.2,0.43747]
[1725703642138,2.05851,2286.5,2286.1,0.43748]
[1725703643746,0.43743,2286.4,2286.0,2.0697]
[1725703643947,0.3704,2286.3,2286.1,0.43748]
[1725703647838,0.79852,2286.5,2286.1,0.43748]
[1725703648043,1.16432,2286.5,2286.1,0.43748]
[1725703649045,1.16432,2286.5,2286.0,0.3722]
[1725703649248,0.7269,2286.5,2286.1,0.43747]
[1725703650153,1.16433,2286.5,2286.1,0.43747]
[1725703653560,1.16433,2286.5,2286.2,0.43747]
[1725703654545,0.43744,2286.4,2286.0,0.3722]
[1725703654756,0.43744,2286.4,2286.1,0.43749]
[1725703654955,0.43744,2286.4,2286.2,0.43747]
[1725703663855,0.43744,2286.4,2286.1,0.43748]
[1725703664664,0.43744,2286.4,2286.2,0.43747]
[1725703665959,0.7269,2286.5,2286.1,0.43748]
[1725703666160,0.43744,2286.4,2286.2,0.43746]
[1725703666870,0.43744,2286.4,2286.1,0.43747]
[1725703667066,0.43745,2286.3,2286.1,0.43747]
[1725703667268,0.43744,2286.4,2286.2,0.43747]
[1725703667663,0.43744,2286.4,2286.1,0.43747]
[1725703668371,0.43744,2286.4,2286.2,0.3589]
[1725703668569,0.43745,2286.3,2286.1,0.43747]
[1725703668868,0.43744,2286.4,2286.1,0.79637]
[1725703670072,0.43744,2286.4,2286.2,0.43747]
[1725703670267,0.43744,2286.4,2286.3,0.3594]
[1725703670872,0.43744,2286.4,2286.3,0.79685]
[1725703670873,4.3736,2286.4,2286.3,0.79685]
[1725703671866,0.80322,2286.5,2286.3,0.79685]
[1725703672171,0.80322,2286.5,2286.3,0.3594]
[1725703672373,0.80322,2286.5,2286.4,0.362]
[1725703672865,5.17682,2286.5,2286.4,0.362]
[1725703673573,4.81102,2286.5,2286.4,0.362]
[1725703673875,4.81102,2286.5,2286.4,0.7427]
[1725703674270,0.43742,2286.5,2286.4,0.7427]
[1725703674479,4.81102,2286.5,2286.4,0.7427]
[1725703674771,0.43742,2286.5,2286.4,0.7427]
[1725703677278,0.43741,2286.5,2286.4,0.7427]
[1725703679678,3.64521,2286.6,2286.4,1.18013]
[1725703680273,0.43741,2286.5,2286.4,0.362]
[1725703680872,0.80021,2286.5,2286.4,0.362]
[1725703682282,0.3628,2286.5,2286.4,0.79943]
[1725703682476,7.65547713,2286.6,2286.4,0.79943]
[1725703684280,3.6452,2286.6,2286.4,0.79943]
[1725703685278,3.2078,2286.6,2286.4,0.79942]
[1725703685478,3.6452,2286.6,2286.4,0.79942]
[1725703688190,0.4374,2286.6,2286.4,0.362]
[1725703689395,2.41728,2286.7,2286.4,0.79942]
[1725703689779,1.15728,2286.7,2286.4,0.79942]
[1725703690979,0.22005628,2286.9,2286.4,3.5698]
[1725703691181,0.43736,2286.8,2286.5,1.96605121]
[1725703691380,5.43370623,2286.8,2286.5,0.819]
[1725703691793,8.64150623,2286.8,2286.5,0.819]
[1725703693386,0.43738,2286.7,2286.5,0.4374]
[1725703693587,0.43741,2286.5,2286.4,0.362]
[1725703693889,0.43741,2286.5,2286.3,0.79685]
[1725703694092,0.3856,2286.4,2286.3,0.79685]
[1725703694292,0.3856,2286.4,2286.3,0.3594]
[1725703695085,0.82303,2286.4,2286.3,0.3594]
[1725703695286,0.3856,2286.4,2286.3,0.3594]
[1725703695886,0.49502291,2286.4,2286.3,0.3594]
[1725703696082,0.3856,2286.4,2286.3,0.3594]
[1725703696289,0.82303,2286.4,2286.3,0.3594]
[1725703696992,0.93245317,2286.4,2286.1,0.82608]
[1725703697191,0.3846,2286.3,2286.2,0.43747]
[1725703697396,0.49402317,2286.3,2286.2,0.43747]
[1725703699287,0.49402317,2286.3,2286.2,1.58452121]
[1725703700090,0.93147317,2286.3,2286.1,2.35353121]
[1725703700291,0.3846,2286.3,2286.2,2.84452121]
[1725703700589,0.49402065,2286.3,2286.2,1.69747]
[1725703701100,0.49402065,2286.3,2286.2,0.43747]
[1725703701801,0.49402065,2286.3,2286.1,2.35353121]
[1725703702001,0.10942065,2286.2,2286.1,2.35353121]
[1725703703102,0.3846,2286.3,2286.2,0.43747]
[1725703703897,0.49402663,2286.3,2286.2,0.43747]
[1725703706998,0.3846,2286.3,2286.2,0.43747]
[1725703707301,0.4940237,2286.3,2286.2,0.43747]
[1725703707802,0.4940237,2286.3,2286.1,0.769]
[1725703707996,0.1094237,2286.2,2286.1,1.20649]
[1725703709894,0.3846,2286.3,2286.2,0.43747]
[1725703710703,0.49402376,2286.3,2286.2,0.43747]
[1725703711105,0.10942376,2286.3,2286.2,0.43747]
[1725703711910,0.10942376,2286.3,2286.2,1.69747]
[1725703713202,0.10942376,2286.3,2286.2,7.16475]
[1725703713507,0.3805,2286.7,2286.5,0.4374]
[1725703713707,0.3805,2286.7,2286.5,0.25932026]
[1725703713909,0.10941772,2286.6,2286.5,0.25932026]
[1725703715521,0.10941772,2286.6,2286.5,0.62162026]
[1725703716404,0.3805,2286.7,2286.5,0.62162026]
[1725703716913,0.10941611,2286.6,2286.5,0.62162026]
[1725703717616,0.21883214,2286.6,2286.5,0.3623]
[1725703718512,0.32824732,2286.6,2286.5,0.3623]
[1725703719015,0.76563732,2286.6,2286.5,0.3623]
[1725703720410,0.87505431,2286.6,2286.5,0.3623]
[1725703720609,0.76563828,2286.6,2286.5,0.3623]
[1725703720917,0.32824828,2286.6,2286.4,2.32738121]
[1725703721116,0.10941699,2286.5,2286.4,2.32738121]
[1725703723721,0.21883129,2286.6,2286.5,0.43741]
[1725703724814,0.32824499,2286.6,2286.5,0.43741]
[1725703726817,0.1094137,2286.6,2286.4,2.32737121]
[1725703727119,0.1094137,2286.5,2286.4,2.32737121]
[1725703728013,0.1094137,2286.5,2286.4,1.18032]
[1725703729120,0.1094137,2286.5,2286.4,2.32737121]
[1725703729417,0.1094137,2286.5,2286.4,1.18032]
[1725703730813,0.81789,2286.7,2286.5,0.43741]
[1725703731019,0.43739,2286.6,2286.4,1.18032]
[1725703731220,4.82816713,2286.7,2286.4,1.18032]
[1725703731419,0.81789,2286.7,2286.5,0.43741]
[1725703731613,0.10941519,2286.6,2286.5,0.43741]
[1725703731813,0.54680519,2286.6,2286.4,0.7429]
[1725703732021,0.10941519,2286.5,2286.4,1.18033]
[1725703733521,0.10941519,2286.5,2286.4,0.79623]
[1725703735325,0.10941519,2286.5,2286.4,0.3588]
[1725703736026,0.10941519,2286.5,2286.1,0.43748]
[1725703736321,1.27425519,2286.4,2286.2,0.43747]
[1725703736527,0.10941519,2286.3,2286.2,0.43747]
[1725703737516,1.16484,2286.4,2286.2,0.43747]
[1725703737824,1.16484,2286.4,2286.3,0.43745]
[1725703737825,0.7274,2286.4,2286.3,0.43745]
[1725703738124,0.7274,2286.4,2286.2,0.43745]
[1725703738319,0.10942719,2286.3,2286.2,0.43745]
[1725703739124,0.10942719,2286.3,2286.2,0.43747]
[1725703740622,0.10942769,2286.3,2286.2,0.43747]
[1725703742816,0.7274,2286.4,2286.2,0.43747]
[1725703743328,0.10942692,2286.3,2286.2,0.43747]
[1725703743622,0.10942692,2286.3,2286.2,1.58452121]
[1725703744238,0.10942692,2286.3,2286.2,3.77282744]
[1725703744428,0.10942692,2286.3,2286.2,3.77279649]
[1725703744621,0.10942692,2286.3,2286.2,0.43747]
[1725703751527,0.10942692,2286.3,2286.2,1.58452121]
[1725703752736,0.43742,2286.5,2286.3,0.43745]
[1725703752931,0.43742,2286.5,2286.2,1.58450121]
[1725703753131,0.50372089,2286.4,2286.2,1.58450121]
[1725703753432,0.10942089,2286.3,2286.2,1.58450121]
[1725703755351,0.10942089,2286.3,2286.2,0.43745]
[1725703756529,0.10942468,2286.3,2286.2,0.43745]
[1725703757530,0.10942468,2286.3,2286.2,1.58450121]
[1725703757733,0.10942468,2286.3,2286.2,0.43745]
[1725703758035,0.10942468,2286.3,2286.2,1.58450121]
[1725703758936,0.10942468,2286.3,2286.2,0.43745]
[1725703760027,0.83173,2286.4,2286.2,0.43745]
[1725703760437,0.10942518,2286.3,2286.2,0.43745]
[1725703761241,0.10942518,2286.3,2286.2,1.58450121]
[1725703761538,0.10942518,2286.3,2286.2,0.43745]
[1725703762737,0.83173,2286.4,2286.2,0.43745]
[1725703763140,0.10942605,2286.3,2286.2,0.43745]
[1725703764238,0.91517605,2286.3,2286.1,2.33673121]
[1725703764441,0.10942605,2286.2,2286.1,2.33673121]
[1725703765437,0.10942605,2286.2,2286.1,5.09863276]
[1725703766750,0.43752,2286.0,2285.7,0.43756]
[1725703766929,0.49772605,2285.9,2285.8,0.43754]
[1725703767132,0.10942605,2285.9,2285.8,0.43754]
[1725703767642,1.2082,2286.1,2285.8,0.43754]
[1725703767840,0.10944243,2285.9,2285.8,0.43754]
[1725703768833,0.10944243,2285.9,2285.8,8.01974]
[1725703769038,0.10944243,2285.9,2285.8,17.52107711]
[1725703769744,0.10944243,2285.9,2285.8,16.42720711]
[1725703774838,0.10944243,2285.9,2285.8,15.27974]
[1725703775036,0.10944243,2285.9,2285.8,9.27974]
[1725703775436,0.3919,2286.2,2286.1,0.43749]
[1725703776245,0.50133084,2286.2,2286.1,0.43749]
[1725703776944,0.50133084,2286.2,2286.1,0.79809]
[1725703777144,0.3919,2286.2,2286.1,0.79809]
[1725703778639,0.5013326,2286.2,2286.1,0.79809]
[1725703780145,4.03176,2286.3,2286.1,0.79809]
[1725703780741,0.10943032,2286.2,2286.1,0.79809]
[1725703781144,0.10943032,2286.2,2286.1,1.94519744]
[1725703781741,0.10943032,2286.2,2286.1,0.79809]
[1725703782942,0.10943032,2286.2,2286.1,1.94519744]
[1725703784142,0.82482,2286.5,2286.3,0.43744]
[1725703784351,0.10942116,2286.4,2286.3,0.43744]
[1725703786056,0.10942157,2286.4,2286.3,0.43744]
[1725703787753,0.54685157,2286.4,2286.2,0.81666]
[1725703787955,0.10942157,2286.3,2286.2,0.81666]
[1725703788953,1.20122,2286.5,2286.3,0.43744]
[1725703789153,0.10942082,2286.4,2286.3,0.43744]
[1725703790352,0.10942305,2286.4,2286.3,0.43744]
[1725703792959,0.54685305,2286.4,2286.3,0.43744]
[1725703793648,4.40902,2286.5,2286.3,0.43744]
[1725703793853,0.10942824,2286.4,2286.3,0.43744]
[1725703797969,0.10942298,2286.4,2286.3,0.43744]
[1725703799954,0.10942336,2286.4,2286.3,0.43744]
[1725703801064,0.10942336,2286.4,2286.3,0.81404]
[1725703802460,3.5952,2286.5,2286.4,0.43743]
[1725703802654,3.43890512,2286.7,2286.3,0.3766]
[1725703802860,0.43737,2286.7,2286.5,0.43739]
[1725703803060,0.10941608,2286.6,2286.5,0.43739]
[1725703803263,0.92061608,2286.6,2286.4,0.80832]
[1725703803464,0.10941608,2286.5,2286.4,0.80832]
[1725703804168,6.83657608,2286.5,2286.1,1.14710744]
[1725703804366,0.43746,2286.3,2286.1,0.43748]
[1725703804665,0.49501608,2286.2,2286.1,0.43748]
[1725703804861,0.86881608,2286.2,2286.1,0.43748]
[1725703805164,0.86881608,2286.2,2286.1,1.58458744]
[1725703805552,0.49502518,2286.2,2286.1,1.58458744]
[1725703806769,0.10942518,2286.2,2286.1,1.58458744]
[1725703808367,0.10942518,2286.2,2286.1,0.43748]
[1725703808562,0.10942518,2286.2,2286.1,1.58458744]
[1725703808767,1.56314,2286.4,2286.2,0.43747]
[1725703809564,0.54687419,2286.3,2286.1,1.58457744]
[1725703809763,0.10942419,2286.2,2286.1,1.58457744]
[1725703810465,0.10942419,2286.2,2286.1,0.43747]
[1725703810966,0.54689419,2286.2,2286.1,0.43749]
[1725703811873,0.10942419,2286.2,2286.1,0.43749]
[1725703814467,0.10942419,2286.2,2286.1,1.58459744]
[1725703815163,0.43746,2286.3,2286.1,1.58459744]
[1725703815372,0.43746,2286.3,2286.1,0.43749]
[1725703815659,0.54689996,2286.2,2286.1,0.43749]
[1725703815864,0.54689996,2286.2,2286.1,1.58459744]
[1725703816061,0.43749,2286.1,2286.0,2.36151744]
[1725703816267,0.7356,2286.1,2286.0,4.55017902]
[1725703816465,1.17309,2286.1,2286.0,4.55017902]
[1725703816665,0.7356,2286.1,2286.0,2.36151744]
[1725703816869,1.17309,2286.1,2286.0,2.36151744]
[1725703817074,0.84502996,2286.1,2286.0,2.36151744]
[1725703817274,1.28251996,2286.1,2286.0,2.36151744]
[1725703817474,0.84502996,2286.1,2286.0,2.36151744]
[1725703817677,1.28251996,2286.1,2286.0,2.36151744]
[1725703817974,0.84502996,2286.1,2286.0,2.36151744]
[1725703818278,1.28251996,2286.1,2286.0,2.36151744]
[1725703818974,1.28251996,2286.1,2286.0,1.21441]
[1725703821280,0.7356,2286.1,2286.0,1.21441]
[1725703821874,0.84503051,2286.1,2286.0,1.21441]
[1725703823875,0.84503051,2286.1,2285.8,0.43754]
[1725703824079,0.43754,2285.8,2285.7,0.3763]
[1725703824278,0.54697051,2285.8,2285.7,0.81386]
[1725703824481,0.10943051,2285.8,2285.7,0.81386]
[1725703824675,0.49703051,2285.8,2285.7,0.81386]
[1725703824880,0.7557,2285.8,2285.7,0.81386]
[1725703825084,0.86515133,2285.8,2285.7,0.81386]
[1725703827182,0.7557,2285.8,2285.7,1.96096744]
[1725703827482,0.10944436,2285.8,2285.7,0.81386]
[1725703827684,0.10944436,2285.8,2285.7,1.96096744]
[1725703828482,0.10944436,2285.8,2285.7,0.81386]
[1725703829084,0.10944307,2285.8,2285.7,1.96096744]
[1725703829289,0.43754,2285.9,2285.7,1.96096744]
[1725703829489,0.10944261,2285.8,2285.7,0.81386]
[1725703831475,0.43754,2285.9,2285.7,0.81386]
[1725703831676,0.10944398,2285.8,2285.7,0.81386]
[1725703834494,0.43753,2285.9,2285.7,0.81386]
[1725703835300,0.10944435,2285.8,2285.7,0.81386]
[1725703838094,0.54698435,2285.8,2285.7,0.81386]
[1725703838290,0.10944435,2285.8,2285.7,0.81386]
[1725703838494,0.43754,2285.9,2285.7,0.81386]
[1725703839695,0.43754,2285.9,2285.8,0.43754]
[1725703842499,0.54699146,2285.9,2285.8,0.43754]
[1725703843194,0.10945146,2285.9,2285.8,0.43754]
[1725703843394,0.10945146,2285.9,2285.8,4.81194]
[1725703844392,0.10945146,2285.9,2285.8,0.43754]
[1725703845489,0.80069,2286.1,2285.9,0.43752]
[1725703845696,0.43753,2285.9,2285.8,0.43754]
[1725703845890,0.1094424,2285.9,2285.8,0.43754]
[1725703846302,0.5469724,2285.9,2285.8,0.43754]
[1725703848790,0.5469724,2285.9,2285.7,0.81385]
[1725703849002,0.1094424,2285.8,2285.7,0.81385]
[1725703849203,0.4927424,2285.8,2285.7,0.81385]
[1725703852309,0.49275011,2285.8,2285.7,0.81385]
[1725703853111,0.3833,2285.8,2285.7,0.81385]
[1725703853408,0.49275024,2285.8,2285.7,0.81385]
[1725703854005,0.93029024,2285.8,2285.7,0.81385]
[1725703856114,0.49275024,2285.8,2285.7,0.81385]
[1725703858009,0.10945024,2285.8,2285.7,0.81385]
[1725703858411,0.54699024,2285.8,2285.7,0.81385]
[1725703859117,0.10945024,2285.8,2285.7,0.81385]
[1725703859407,0.10945024,2285.8,2285.7,5.18905]
[1725703860424,0.8228,2286.1,2285.9,0.43752]
[1725703860608,0.8228,2286.1,2286.0,1.18]
[1725703860808,0.4375,2286.1,2286.0,1.18]
[1725703861506,0.1094394,2286.1,2286.0,1.61751]
[1725703861712,3.7547294,2286.1,2286.0,1.61751]
[1725703862116,3.3172394,2286.1,2286.0,1.18]
[1725703862314,3.3172394,2286.1,2286.0,1.61751]
[1725703863012,0.1094394,2286.1,2286.0,1.61751]
[1725703863817,5.38098114,2286.5,2286.3,0.43743]
[1725703864013,5.13562772,2286.6,2286.4,0.57634088]
[1725703864204,1.26,2286.6,2286.4,0.57634088]
[1725703864511,1.26,2286.6,2286.4,0.95424088]
[1725703865309,1.26,2286.6,2286.4,1.39167088]
[1725703866809,3.5829,2286.7,2286.5,0.4374]
[1725703867119,3.5829,2286.7,2286.6,0.43739]
[1725703867307,3.5829,2286.7,2286.5,0.4374]
[1725703868108,3.5829,2286.7,2286.4,0.95424088]
[1725703868706,3.5829,2286.7,2286.5,0.4374]
[1725703868918,3.2078,2286.7,2286.5,0.4374]
[1725703869620,0.43735,2286.8,2286.5,0.4374]
[1725703870511,2.08615,2286.9,2286.5,0.43741]
[1725703870711,2.08615,2286.9,2286.6,0.43738]
[1725703871217,2.08615,2286.9,2286.7,0.3868]
[1725703872420,5.52437772,2286.9,2286.7,0.3868]
[1725703872922,5.52437772,2286.9,2286.7,0.82417]
[1725703873119,5.08702772,2286.9,2286.7,0.3868]
[1725703873427,5.52436772,2286.9,2286.7,0.82417]
[1725703873614,3.82702772,2286.9,2286.8,0.43735]
[1725703873815,0.3888,2286.9,2286.8,0.81415]
[1725703874014,0.3888,2286.9,2286.8,1.19935]
[1725703876924,0.3907,2287.0,2286.8,1.19935]
[1725703877116,0.3611,2286.9,2286.8,1.19935]
[1725703879417,0.3907,2287.0,2286.9,0.43733]
[1725703879616,0.7711,2287.0,2286.9,0.43733]
[1725703880022,0.7711,2287.0,2286.8,1.19934]
[1725703881625,0.7711,2287.0,2286.9,0.43733]
[1725703891129,0.7711,2287.0,2286.9,0.82313]
[1725703892230,0.3804,2287.0,2286.9,0.82313]
[1725703893526,3.64509,2287.2,2287.0,0.43731]
[1725703893730,0.3569,2287.1,2287.0,0.43731]
[1725703902539,3.64508,2287.2,2287.0,4.81011]
[1725703902729,3.64508,2287.2,2287.1,0.7652]
[1725703903238,3.64508,2287.2,2287.1,5.1372]
[1725703906534,0.43728,2287.2,2287.1,5.1372]
[1725703906733,3.64508,2287.2,2287.1,0.7652]
[1725703907537,3.2078,2287.2,2287.1,0.7652]
[1725703907739,0.79497,2287.3,2287.1,0.7652]
[1725703908132,0.3577,2287.3,2287.1,0.7652]
[1725703908538,3.2078,2287.2,2287.1,0.7652]
[1725703909036,3.2078,2287.2,2287.1,5.1372]